fUST/lending_fUST_20251203
["ID","MTS","AMOUNT","RATE_DAILY","PERIOD"]
[396167324,1764768642701,-3207.40519818,0.00016722,2]
[396167325,1764768642711,-2100.0,0.0001696,2]
[396167326,1764768642720,-500.0,0.00016966,2]
[396167327,1764768642729,-3500.0,0.00016986,2]
[396167329,1764768642739,-3500.0,0.00016986,2]
[396167331,1764768642953,-3500.0,0.00016986,2]
[396167332,1764768642965,-106535.46500669,0.00017,2]
[396167334,1764768642975,-323.0,0.00017027,2]
[396167335,1764768642984,-301.96,0.00017036,2]
[396167336,1764768642993,-172.74420852,0.00017071,2]
[396167337,1764768643003,-245.31722717,0.00017075,7]
[396167338,1764768643012,-4000.0,0.00017108,2]
[396167339,1764768643022,-50000.0,0.0001713,2]
[396167340,1764768643031,-414.0,0.00017191,2]
[396167341,1764768643041,-660.0,0.00017251,2]
[396167342,1764768643051,-1601.05973518,0.0001726,2]
[396167343,1764768643061,-3326.07919052,0.0001727,2]
[396167344,1764768643070,-523.0,0.00017333,2]
[396167346,1764768643079,-823.0,0.00017485,2]
[396167348,1764768643089,-2400.0,0.00017508,2]
[396167349,1764768643099,-4000.0,0.00017534,2]
[396167350,1764768643108,-4000.0,0.00017534,2]
[396167351,1764768643117,-2653.49152263,0.00017534,2]
[396167352,1764768643127,-245.31722717,0.00017591,9]
[396167353,1764768643136,-2127.08884642,0.000176,2]
[396167354,1764768643146,-4500.0,0.00017656,2]
[396167355,1764768643155,-402.61,0.00017777,2]
[396167356,1764768643165,-760.0,0.00017799,2]
[396167357,1764768643174,-500.0,0.00017804,2]
[396167358,1764768643184,-500.0,0.00017808,2]
[396167359,1764768643193,-500.0,0.00017808,2]
[396167360,1764768643203,-500.0,0.00017808,2]
[396167361,1764768643212,-500.0,0.00017808,2]
[396167362,1764768643221,-500.0,0.00017808,2]
[396167363,1764768643230,-500.0,0.00017808,2]
[396167364,1764768643240,-500.0,0.00017808,2]
[396167365,1764768643249,-500.0,0.00017808,2]
[396167366,1764768643258,-500.0,0.00017808,2]
[396167367,1764768643268,-384.75086836,0.00017808,2]
[396167368,1764768643277,-3449.14412057,0.00017818,2]
[396167369,1764768643286,-231.0,0.00017867,2]
[396167371,1764768643297,-2826.61804343,0.0001795,2]
[396167373,1764768643306,-9116.18903501,0.00018,2]
[396167375,1764768643315,-1435.631486,0.00018,2]
[396167377,1764768643325,-2700.0,0.00018056,2]
[396167379,1764768643334,-635.489,0.00018067,2]
[396167381,1764768643343,-1359.0,0.00018067,2]
[396167383,1764768643351,-2154.0,0.00018067,2]
[396167385,1764768643361,-414.0,0.00018067,2]
[396167386,1764768643370,-4500.0,0.00018082,2]
[396167388,1764768643379,-4500.0,0.00018082,2]
[396167390,1764768643388,-245.31722717,0.00018106,10]
[396167392,1764768643397,-5000.0,0.00018204,2]
[396167394,1764768643407,-860.0,0.00018347,2]
[396167396,1764768643416,-3576.76245303,0.00018366,2]
[396167398,1764768643425,-1000.0,0.00018377,2]
[396167400,1764768643434,-500.0,0.00018492,2]
[396167402,1764768643443,-273.841012,0.00018493,2]
[396167404,1764768643452,-1000.0,0.000185,2]
[396167406,1764768643460,-503.26,0.00018518,2]
[396167408,1764768643470,-3091.43020649,0.00018604,2]
[396167410,1764768643479,-245.31722717,0.00018621,12]
[396167412,1764768643488,-500.0,0.00018625,2]
[396167415,1764768643498,-5000.0,0.0001863,2]
[396167418,1764768643507,-2427.19828866,0.0001863,2]
[396167421,1764768643517,-428.7,0.00018639,2]
[396167423,1764768643526,-5500.0,0.00018752,2]
[396167426,1764768643535,-500.0,0.0001883,2]
[396167428,1764768643546,-500.0,0.00018853,2]
[396167430,1764768643555,-960.0,0.00018895,2]
[396167432,1764768643565,-2000.0,0.00018897,3]
[396167434,1764768643574,-172.74420852,0.000189,2]
[396167436,1764768643586,-232.66318313,0.000189,2]
[396167438,1764768643596,-603.6305341,0.00018904,2]
[396167440,1764768643606,-2000.0,0.00018906,3]
[396167442,1764768643615,-3709.10266379,0.00018914,2]
[396167444,1764768643625,-2000.0,0.00018915,3]
[396167446,1764768643634,-2000.0,0.00018923,3]
[396167448,1764768643643,-2000.0,0.00018932,3]
[396167450,1764768643652,-2000.0,0.00018941,3]
[396167452,1764768643666,-2000.0,0.00018941,3]
[396167454,1764768643675,-2000.0,0.0001895,3]
[396167456,1764768643684,-2000.0,0.0001895,3]
[396167458,1764768643694,-2000.0,0.00018959,3]
[396167460,1764768643703,-2000.0,0.00018959,3]
[396167462,1764768643713,-2000.0,0.00018967,3]
[396167464,1764768643722,-2000.0,0.00018967,3]
[396167466,1764768643731,-2000.0,0.00018976,3]
[396167468,1764768643740,-2000.0,0.00018976,3]
[396167470,1764768643749,-2000.0,0.00018985,3]
[396167472,1764768643758,-2000.0,0.00018985,3]
[396167473,1764768643767,-2000.0,0.00018985,3]
[396167474,1764768643777,-70000.0,0.00019,2]
[396167475,1764768643786,-182429.50118454,0.00019,2]
[396167476,1764768643801,-40991.65176701,0.00019,2]
[396167477,1764768643812,-532.5,0.00019,2]
[396167478,1764768643967,-500.0,0.00013269,2]
[396167479,1764768643976,-500.0,0.00013269,2]
[396167480,1764768643987,-500.0,0.00013269,2]
[396167481,1764768643997,-157.4682726,0.00013269,2]
[396167488,1764768646284,-342.5317274,0.00013269,2]
[396167489,1764768646294,-500.0,0.00013269,2]
[396167490,1764768646303,-500.0,0.00013269,2]
[396167491,1764768646313,-500.0,0.00013269,2]
[396167492,1764768646322,-500.0,0.00013269,2]
[396167493,1764768646331,-500.0,0.00013269,2]
[396167494,1764768646340,-500.0,0.00013269,2]
[396167495,1764768646349,-209.04340451,0.00013269,2]
[396167496,1764768646359,-500.0,0.00013269,2]
[396167497,1764768646369,-500.0,0.00014246,2]
[396167498,1764768646378,-500.0,0.00014246,2]
[396167499,1764768646387,-275.5198128,0.00014246,2]
[396167500,1764768646396,-3440.18465186,0.00019,2]
[396167501,1764768646408,-1981.15394942,0.00019,2]
[396167502,1764768646425,-1441.1821735,0.00019,2]
[396167503,1764768653083,5001.2844402,0.00032877,120]
[396167505,1764768689279,160.77592081,0.00032877,120]
[396167506,1764768722819,250.0,0.0002,30]
[396167507,1764768730977,999.0,0.00032876,120]
[396167508,1764768754280,640.0,0.00032876,120]
[396167509,1764769004364,999.0,0.00032876,120]
[396167510,1764769015092,181.9741005,0.00031,120]
[396167511,1764769058499,1746.66195,0.00030137,120]
[396167512,1764769195488,5000.0,0.0001401,9]
[396167513,1764769211244,5000.0,0.0001401,9]
[396167514,1764769219117,2994.97695335,0.0001401,9]
[396167515,1764769222952,999.0,0.00032876,120]
[396167519,1764769311622,4999.99999999,0.00032877,120]
[396167520,1764769359745,500.0,0.0003287,120]
[396167522,1764769459749,999.0,0.00032876,120]
[396167530,1764769562554,267.17,5e-05,2]
[396167532,1764769562867,267.17,5.2e-05,2]
[396167533,1764769563266,267.17,5.4e-05,2]
[396167534,1764769563559,267.17,5.6e-05,2]
[396167535,1764769563872,267.17,5.8e-05,2]
[396167536,1764769564169,267.17,6e-05,2]
[396167537,1764769564467,267.17,6.2e-05,2]
[396167538,1764769564789,207.97789215,6.4e-05,2]
[396167539,1764769564823,59.19210785,6.4e-05,2]
[396167540,1764769565088,267.17,6.6e-05,2]
[396167541,1764769565382,267.17,6.8e-05,2]
[396167542,1764769565695,267.17,7e-05,2]
[396167543,1764769566062,267.17,7.2e-05,2]
[396167544,1764769566467,267.17,7.4e-05,2]
[396167545,1764769566771,267.17,7.7e-05,2]
[396167546,1764769567079,267.17,7.9e-05,2]
[396167547,1764769567385,267.17,8.1e-05,2]
[396167548,1764769567688,267.17,8.3e-05,2]
[396167549,1764769568003,267.17,8.5e-05,2]
[396167550,1764769568326,267.17,8.7e-05,2]
[396167551,1764769568624,267.17,8.9e-05,2]
[396167552,1764769568947,267.17,9.1e-05,2]
[396167553,1764769579446,267.01,5e-05,2]
[396167554,1764769584222,-267.17,9.3e-05,2]
[396167555,1764769584243,-267.17,9.5e-05,2]
[396167556,1764769625614,-900.60776664,9.603e-05,2]
[396167557,1764769625635,-633.43776664,9.7e-05,2]
[396167558,1764769632041,313.69,5e-05,2]
[396167559,1764769632346,313.69,5.2e-05,2]
[396167560,1764769632662,313.69,5.4e-05,2]
[396167561,1764769633007,313.69,5.6e-05,2]
[396167562,1764769633423,313.69,5.8e-05,2]
[396167563,1764769633722,313.69,6e-05,2]
[396167564,1764769634050,313.69,6.2e-05,2]
[396167565,1764769634341,313.69,6.4e-05,2]
[396167566,1764769634644,313.69,6.6e-05,2]
[396167567,1764769634967,313.69,6.8e-05,2]
[396167568,1764769635263,313.69,7e-05,2]
[396167569,1764769635661,313.69,7.2e-05,2]
[396167570,1764769636324,313.69,7.4e-05,2]
[396167571,1764769636633,313.69,7.6e-05,2]
[396167572,1764769636945,313.69,7.8e-05,2]
[396167573,1764769637241,313.69,8e-05,2]
[396167574,1764769637542,313.69,8.2e-05,2]
[396167575,1764769637855,313.69,8.4e-05,2]
[396167576,1764769638173,313.69,8.6e-05,2]
[396167577,1764769638475,313.69,8.8e-05,2]
[396167578,1764769638850,313.69,9e-05,2]
[396167579,1764769639166,313.69,9.2e-05,2]
[396167580,1764769639553,313.69,9.4e-05,2]
[396167581,1764769640204,313.69,9.6e-05,2]
[396167582,1764769640524,313.69,9.8e-05,2]
[396167583,1764769640945,313.69,0.0001,2]
[396167584,1764769682558,250.0,0.0002,30]
[396167585,1764769683047,250.0,0.0001,2]
[396167586,1764769691400,302.05,5e-05,2]
[396167587,1764769691696,302.05,5.2e-05,2]
[396167588,1764769692003,302.05,5.4e-05,2]
[396167589,1764769692324,302.05,5.6e-05,2]
[396167590,1764769692625,302.05,5.8e-05,2]
[396167591,1764769692963,302.05,6e-05,2]
[396167592,1764769693261,302.05,6.2e-05,2]
[396167593,1764769693560,302.05,6.4e-05,2]
[396167594,1764769693899,302.05,6.6e-05,2]
[396167595,1764769694385,302.05,6.8e-05,2]
[396167596,1764769694729,302.05,7e-05,2]
[396167597,1764769695091,302.05,7.2e-05,2]
[396167598,1764769695451,302.05,7.4e-05,2]
[396167599,1764769695781,302.05,7.6e-05,2]
[396167600,1764769696130,302.05,7.8e-05,2]
[396167601,1764769696446,302.05,8e-05,2]
[396167602,1764769696775,999.0,0.00032876,120]
[396167603,1764769697181,302.05,8.2e-05,2]
[396167604,1764769697255,302.05,8.4e-05,2]
[396167605,1764769697567,302.05,8.6e-05,2]
[396167606,1764769697930,302.05,8.8e-05,2]
[396167607,1764769698388,302.05,9e-05,2]
[396167608,1764769698728,302.05,9.2e-05,2]
[396167609,1764769699037,302.05,9.4e-05,2]
[396167610,1764769699357,302.05,9.6e-05,2]
[396167611,1764769699647,302.05,9.8e-05,2]
[396167612,1764769699991,302.05,0.0001,2]
[396167614,1764769751875,307.64,5e-05,2]
[396167615,1764769752215,307.64,5.2e-05,2]
[396167616,1764769752795,307.64,5.4e-05,2]
[396167617,1764769753097,307.64,5.6e-05,2]
[396167618,1764769753397,307.64,5.8e-05,2]
[396167619,1764769753681,307.64,6e-05,2]
[396167620,1764769753962,307.64,6.2e-05,2]
[396167621,1764769754242,307.64,6.4e-05,2]
[396167622,1764769754567,307.64,6.6e-05,2]
[396167623,1764769754853,307.64,6.8e-05,2]
[396167624,1764769755186,307.64,7e-05,2]
[396167625,1764769755568,307.64,7.2e-05,2]
[396167626,1764769756038,307.64,7.4e-05,2]
[396167627,1764769756375,307.64,7.6e-05,2]
[396167628,1764769756809,307.64,7.8e-05,2]
[396167629,1764769757156,307.64,8e-05,2]
[396167630,1764769757479,307.64,8.2e-05,2]
[396167631,1764769757833,307.64,8.4e-05,2]
[396167632,1764769758349,307.64,8.6e-05,2]
[396167633,1764769758660,307.64,8.8e-05,2]
[396167634,1764769758949,307.64,9e-05,2]
[396167635,1764769759236,307.64,9.2e-05,2]
[396167636,1764769759535,307.64,9.4e-05,2]
[396167637,1764769812825,266.88,5e-05,2]
[396167638,1764769813100,266.88,5.2e-05,2]
[396167639,1764769813388,266.88,5.4e-05,2]
[396167640,1764769813774,266.88,5.6e-05,2]
[396167641,1764769814082,266.88,5.8e-05,2]
[396167642,1764769814362,266.88,6e-05,2]
[396167643,1764769814719,266.88,6.2e-05,2]
[396167644,1764769815209,266.88,6.4e-05,2]
[396167645,1764769815382,266.88,6.6e-05,2]
[396167646,1764769815668,266.88,6.8e-05,2]
[396167647,1764769815950,266.88,7e-05,2]
[396167648,1764769816324,266.88,7.2e-05,2]
[396167649,1764769816677,266.88,7.4e-05,2]
[396167650,1764769817074,266.88,7.6e-05,2]
[396167651,1764769817411,266.88,7.8e-05,2]
[396167652,1764769817695,266.88,8e-05,2]
[396167653,1764769817991,266.88,8.2e-05,2]
[396167654,1764769818340,266.88,8.4e-05,2]
[396167655,1764769818654,266.88,8.6e-05,2]
[396167656,1764769819020,266.88,8.8e-05,2]
[396167657,1764769819415,266.88,9e-05,2]
[396167658,1764769819705,266.88,9.2e-05,2]
[396167659,1764769820000,266.88,9.4e-05,2]
[396167660,1764769832307,-266.88,9.6e-05,2]
[396167661,1764769832316,-266.88,9.8e-05,2]
[396167662,1764769832325,-266.88,0.0001,2]
[396167663,1764769832334,-313.69,0.00010098,2]
[396167664,1764769832343,-233.0,0.00010098,2]
[396167665,1764769832352,-266.88,0.000102,2]
[396167666,1764769832361,-266.88,0.000104,2]
[396167667,1764769832370,-266.88,0.000106,2]
[396167668,1764769832378,-266.88,0.000108,2]
[396167669,1764769832387,-266.88,0.00011,2]
[396167671,1764769832396,-150.0,0.00011149,2]
[396167673,1764769832405,-266.88,0.000112,2]
[396167674,1764769832413,-266.88,0.000114,2]
[396167675,1764769832422,-266.88,0.000116,2]
[396167676,1764769832431,-266.88,0.000118,2]
[396167677,1764769832439,-266.88,0.00012,2]
[396167678,1764769832448,-266.88,0.000122,2]
[396167679,1764769832456,-266.88,0.000124,2]
[396167680,1764769832465,-266.88,0.000126,2]
[396167681,1764769832474,-266.88,0.000128,2]
[396167682,1764769832483,-266.88,0.00013,2]
[396167683,1764769832492,-177.0,0.00013149,2]
[396167684,1764769832501,-266.88,0.000132,2]
[396167685,1764769832511,-500.0,0.00013273,2]
[396167686,1764769832520,-500.0,0.00013273,2]
[396167687,1764769832529,-266.88,0.000134,2]
[396167688,1764769832539,-300.0,0.000136,2]
[396167689,1764769832548,-266.88,0.000136,2]
[396167690,1764769832558,-634.33815606,0.00013698,2]
[396167691,1764769832567,-1000.0,0.00013699,2]
[396167692,1764769832577,-500.0,0.00013699,2]
[396167693,1764769832586,-50000.0,0.00013699,2]
[396167694,1764769832596,-596.8125,0.00013699,2]
[396167695,1764769832606,-1766.63627717,0.00013721,2]
[396167696,1764769832615,-266.88,0.000138,2]
[396167697,1764769832624,-1000.0,0.00013821,2]
[396167698,1764769832633,-1000.0,0.00013821,2]
[396167699,1764769832642,-266.88,0.00014,2]
[396167700,1764769832652,-175.0,0.00014164,3]
[396167701,1764769832661,-259.42119371,0.00014169,2]
[396167702,1764769832670,-266.88,0.000142,2]
[396167703,1764769832681,-1000.0,0.00014247,2]
[396167704,1764769832691,-1500.0,0.00014368,2]
[396167705,1764769832699,-1500.0,0.00014368,2]
[396167706,1764769832709,-266.88,0.000144,2]
[396167707,1764769832718,-266.88,0.000146,2]
[396167708,1764769832727,-2579.17784983,0.0001464,2]
[396167709,1764769832737,-300.0,0.00014655,2]
[396167710,1764769832748,-300.0,0.00014655,2]
[396167711,1764769832758,-300.0,0.00014655,2]
[396167712,1764769832767,-300.0,0.00014655,2]
[396167713,1764769832777,-300.0,0.00014655,2]
[396167714,1764769832787,-300.0,0.00014655,2]
[396167715,1764769832797,-300.0,0.00014655,2]
[396167716,1764769832806,-300.0,0.00014655,2]
[396167717,1764769832816,-300.0,0.00014655,2]
[396167718,1764769832825,-300.0,0.00014655,2]
[396167719,1764769832835,-300.0,0.00014655,2]
[396167720,1764769832844,-300.0,0.00014655,2]
[396167721,1764769832854,-300.0,0.00014655,2]
[396167722,1764769832863,-300.0,0.00014655,2]
[396167723,1764769832873,-300.0,0.00014655,2]
[396167724,1764769832883,-1500.0,0.00014795,2]
[396167725,1764769832892,-266.88,0.000148,2]
[396167726,1764769832902,-420.0,0.00014906,2]
[396167727,1764769832911,-2000.0,0.00014916,2]
[396167728,1764769832920,-1220.84443326,0.00014916,2]
[396167729,1764769832930,-600.0,0.00014947,2]
[396167730,1764769832940,-500.0,0.0001505,2]
[396167731,1764769832950,-500.0,0.00015052,2]
[396167732,1764769832959,-160.0,0.000151,2]
[396167733,1764769832969,-204.0,0.00015149,2]
[396167734,1764769832981,-500.0,0.00015182,2]
[396167735,1764769832990,-2674.60743027,0.00015188,2]
[396167736,1764769832999,-2000.0,0.00015342,2]
[396167737,1764769833009,-2500.0,0.00015464,2]
[396167738,1764769833018,-150.0,0.00015539,2]
[396167739,1764769833027,-260.0,0.00015648,2]
[396167740,1764769833035,-2773.56790519,0.00015736,2]
[396167741,1764769833045,-2500.0,0.0001589,2]
[396167743,1764769833054,-500.0,0.00016011,2]
[396167745,1764769833064,-392.86386896,0.00016011,2]
[396167747,1764769833073,-3000.0,0.00016012,2]
[396167749,1764769833082,-1766.63627714,0.00016032,2]
[396167751,1764769833091,-360.0,0.00016196,2]
[396167753,1764769833100,-161.62,0.00016279,2]
[396167754,1764769833110,-2876.18991768,0.00016284,2]
[396167756,1764769833119,-587.0,0.00016337,2]
[396167759,1764769833128,-166.0,0.00016413,2]
[396167760,1764769833138,-166.0,0.00016413,2]
[396167762,1764769833147,-162.0,0.00016413,2]
[396167765,1764769833157,-166.0,0.00016413,2]
[396167767,1764769833167,-166.0,0.00016413,2]
[396167768,1764769833176,-166.0,0.00016413,2]
[396167770,1764769833185,-152.0,0.00016413,2]
[396167772,1764769833194,-152.0,0.00016413,2]
[396167774,1764769833203,-589.90371835,0.00016438,2]
[396167776,1764769833214,-1012.24123731,0.00016438,2]
[396167778,1764769833224,-720.0,0.00016442,2]
[396167781,1764769833233,-3500.0,0.0001656,2]
[396167782,1764769833243,-460.0,0.00016744,2]
[396167784,1764769833252,-2546.12126318,0.00016832,2]
[396167787,1764769833262,-242.43,0.00017019,2]
[396167789,1764769833272,-1081.86100767,0.00017108,2]
[396167790,1764769833282,-231.0,0.00017149,2]
[396167792,1764769833292,-560.0,0.00017292,2]
[396167794,1764769833302,-500.0,0.00017317,2]
[396167796,1764769833311,-500.0,0.00017351,2]
[396167798,1764769833320,-323.24,0.00017759,2]
[396167801,1764769833331,-660.0,0.0001784,2]
[396167802,1764769833341,-823.0,0.00017905,2]
[396167805,1764769833351,-2154.0,0.00017967,2]
[396167807,1764769833360,-1359.0,0.00017967,2]
[396167809,1764769833370,-631.0,0.00017967,2]
[396167811,1764769833379,-414.0,0.00017967,2]
[396167812,1764769833388,-27511.36469297,0.0001799,2]
[396167822,1764769834033,-54351.4822134,0.0001799,2]
[396167862,1764769838467,-616.52065901,0.0001799,2]
[396167865,1764769838479,-500.0,0.0001799,2]
[396167870,1764769838524,-2012.70208524,0.0001799,2]
[396167872,1764769838535,-1513.73603526,0.0001799,2]
[396167877,1764769838580,-3559.21910635,0.0001799,2]
[396168155,1764769841665,-4411.04309886,0.0001799,2]
[396168157,1764769841680,-832.22694927,0.0001799,2]
[396168325,1764769843692,-287.77195798,0.000115,2]
[396168328,1764769843703,-287.77195798,0.0001291,2]
[396168330,1764769843720,-287.77195798,0.00014321,2]
[396168333,1764769843733,-287.77195798,0.00015731,2]
[396168335,1764769843746,-245.7018537,0.00016874,2]
[396168338,1764769843759,-110.27420799,0.0001781,2]
[396168340,1764769843775,-8758.22371993,0.0001781,2]
[396168621,1764769846734,-288.05972993,0.00017142,2]
[396168623,1764769846744,-1066.47727985,0.0001781,2]
[396168625,1764769846753,-4691.70515964,0.0001799,2]
[396168626,1764769846763,-864.0,0.00018086,2]
[396168628,1764769846773,-500.0,0.00018114,2]
[396168630,1764769846783,-279.0,0.00018171,2]
[396168632,1764769846792,-1766.63627714,0.00018344,2]
[396168634,1764769846801,-353.0,0.00018377,2]
[396168636,1764769846810,-760.0,0.00018388,2]
[396168638,1764769846819,-500.0,0.00018397,2]
[396168640,1764769846829,-404.05,0.00018499,2]
[396168642,1764769846839,-418.0,0.00018581,2]
[396168644,1764769846848,-393.0,0.00018619,2]
[396168646,1764769846857,-500.0,0.00018698,2]
[396168648,1764769846866,-500.0,0.00018795,2]
[396168650,1764769846875,-43473.5306369,0.0001888,2]
[396168651,1764769846884,-2022.9451109,0.0001888,2]
[396168653,1764769846893,-302.9394212,0.000189,2]
[396168655,1764769846902,-860.0,0.00018936,2]
[396168657,1764769846911,-1235.76520168,0.00018985,3]
[396168659,1764769846920,-26137.22362911,0.00019,2]
[396168961,1764769945133,999.0,0.00032876,120]
[396168964,1764770018547,500.0,0.00032876,120]
[396168966,1764770099740,2004.42,0.00032876,120]
[396168967,1764770176322,999.0,0.00032876,120]
[396168969,1764770256726,200.0,0.00032876,120]
[396168970,1764770297261,48068.7317729,0.00032876,120]
[396168972,1764770409999,999.0,0.00032876,120]
[396168973,1764770490577,-300.0,9.999e-05,2]
[396168974,1764770490599,-640.49,0.0001,2]
[396168975,1764770490619,-640.49,0.0001,2]
[396168976,1764770490640,-640.49,0.0001,2]
[396168977,1764770490661,-640.49,0.0001,2]
[396168978,1764770490684,-640.49,0.0001,2]
[396168979,1764770490709,-300.0,0.00010199,2]
[396168980,1764770490733,-300.0,0.00010199,2]
[396168981,1764770490756,-300.0,0.00010199,2]
[396168982,1764770490779,-300.0,0.00010199,2]
[396168983,1764770490803,-300.0,0.00010199,2]
[396168984,1764770490827,-300.0,0.00010199,2]
[396168985,1764770490853,-300.0,0.00010199,2]
[396168986,1764770490879,-300.0,0.00010199,2]
[396168987,1764770490905,-300.0,0.00010199,2]
[396168988,1764770490935,-300.0,0.00010199,2]
[396168989,1764770490960,-300.0,0.00010199,2]
[396168990,1764770490984,-300.0,0.00010199,2]
[396168991,1764770491012,-300.0,0.00010199,2]
[396168992,1764770491038,-300.0,0.00010199,2]
[396168993,1764770491062,-300.0,0.00010199,2]
[396169026,1764770641822,250.0,0.0002,30]
[396169027,1764770678148,999.0,0.00032876,120]
[396169028,1764770887994,999.0,0.00032876,120]
[396169029,1764771016479,160.0,0.000328,120]
[396169030,1764771017738,160.0,0.000328,120]
[396169050,1764771032617,-640.47,0.0001,2]
[396169051,1764771032627,-232.0,0.0001,2]
[396169052,1764771032638,-150.0,0.00010149,2]
[396169053,1764771032648,-862.9462323,0.00011787,2]
[396169055,1764771032657,-177.0,0.00012149,2]
[396169057,1764771032667,-500.0,0.00012328,2]
[396169059,1764771032677,-500.0,0.00012328,2]
[396169060,1764771032685,-500.0,0.00012328,2]
[396169061,1764771032695,-500.0,0.00012328,2]
[396169062,1764771032704,-500.0,0.00012328,2]
[396169063,1764771032714,-500.0,0.00012328,2]
[396169064,1764771032723,-500.0,0.00012328,2]
[396169065,1764771032732,-300.0,0.00012328,2]
[396169066,1764771032742,-1200.0,0.00012328,2]
[396169067,1764771032752,-10164.16,0.00012329,2]
[396169068,1764771032761,-9886.75,0.00012329,2]
[396169069,1764771032771,-8238.96,0.00012329,2]
[396169070,1764771032781,-6865.8,0.00012329,2]
[396169071,1764771032790,-5721.5,0.00012329,2]
[396169072,1764771032801,-4767.91,0.00012329,2]
[396169073,1764771032811,-3973.26,0.00012329,2]
[396169074,1764771032820,-3311.05,0.00012329,2]
[396169076,1764771032829,-2759.21,0.00012329,2]
[396169077,1764771032839,-29834.20787398,0.00012329,2]
[396169078,1764771032848,-2299.34,0.00012329,2]
[396169079,1764771032858,-1916.12,0.00012329,2]
[396169080,1764771032867,-1596.76,0.00012329,2]
[396169081,1764771032877,-1330.64,0.00012329,2]
[396169082,1764771032886,-1108.86,0.00012329,2]
[396169083,1764771032895,-500.0,0.00012573,2]
[396169084,1764771032905,-500.0,0.00012573,2]
[396169085,1764771032914,-299.19785501,0.00012573,2]
[396169086,1764771032923,-209.64936563,0.00012573,2]
[396169087,1764771032933,-500.0,0.00012573,2]
[396169088,1764771032943,-300.0,0.00012574,2]
[396169089,1764771032953,-300.0,0.00012574,2]
[396169090,1764771032962,-300.0,0.00012574,2]
[396169091,1764771032972,-300.0,0.00012574,2]
[396169092,1764771032981,-300.0,0.00012574,2]
[396169093,1764771032990,-300.0,0.00012574,2]
[396169094,1764771032999,-300.0,0.00012574,2]
[396169095,1764771033009,-300.0,0.00012574,2]
[396169096,1764771033018,-300.0,0.00012574,2]
[396169097,1764771033028,-300.0,0.00012574,2]
[396169098,1764771033038,-300.0,0.00012574,2]
[396169099,1764771033050,-300.0,0.00012574,2]
[396169100,1764771033060,-300.0,0.00012574,2]
[396169101,1764771033070,-300.0,0.00012574,2]
[396169102,1764771033080,-300.0,0.00012574,2]
[396169103,1764771033089,-600.0,0.00012574,2]
[396169104,1764771033098,-250.0,0.00013213,2]
[396169105,1764771033108,-500.0,0.00013272,2]
[396169106,1764771033118,-500.0,0.00013273,2]
[396169107,1764771033127,-600.06990915,0.00013273,2]
[396169108,1764771033137,-500.0,0.00013273,2]
[396169109,1764771033146,-501.10677899,0.00013273,2]
[396169110,1764771033156,-500.34980917,0.00013273,2]